bitfinex/quotes_BTCUSD_20230113
["timestamp","ask_amount","ask_price","bid_price","bid_amount"]
[1673651014975,0.01004686,19890.0,19889.0,2.41311792]
[1673651015221,0.01704686,19890.0,19889.0,2.52011792]
[1673651015521,0.01004686,19890.0,19889.0,2.2712055]
[1673651015769,0.01704686,19890.0,19889.0,2.3782055]
[1673651016010,0.01704686,19890.0,19889.0,3.03842324]
[1673651016524,0.01704686,19890.0,19889.0,2.70743145]
[1673651016770,0.66882475,19890.0,19889.0,0.107]
[1673651017263,0.86882475,19890.0,19889.0,0.107]
[1673651017505,0.86882475,19890.0,19889.0,0.437]
[1673651017749,1.08570186,19890.0,19889.0,0.437]
[1673651018027,0.85950909,19890.0,19889.0,0.33]
[1673651018273,0.95450909,19890.0,19889.0,0.338]
[1673651018507,0.85950909,19890.0,19889.0,0.33]
[1673651018760,0.95450909,19890.0,19889.0,0.333]
[1673651018987,0.85950909,19890.0,19889.0,0.325]
[1673651019240,1.19138409,19890.0,19889.0,0.3655]
[1673651019483,1.11057686,19890.0,19889.0,0.96541161]
[1673651019728,1.11057686,19890.0,19889.0,1.49109933]
[1673651020218,0.10504686,19890.0,19889.0,1.99236761]
[1673651020504,0.10504686,19890.0,19889.0,1.46667989]
[1673651020730,0.01004686,19890.0,19889.0,2.92205947]
[1673651020970,0.10104686,19890.0,19889.0,2.30571371]
[1673651021209,0.10104686,19890.0,19889.0,2.80989876]
[1673651021460,0.10104686,19890.0,19889.0,2.30571371]
[1673651021700,0.10104686,19890.0,19889.0,3.59241379]
[1673651021942,0.10104686,19890.0,19889.0,3.00850371]
[1673651022692,0.10104686,19890.0,19889.0,2.4085921]
[1673651022980,0.10104686,19890.0,19889.0,3.00850371]
[1673651023228,0.10104686,19890.0,19889.0,2.4085921]
[1673651023465,0.10104686,19890.0,19889.0,3.00850371]
[1673651023692,0.10104686,19890.0,19889.0,3.51129371]
[1673651023945,0.10104686,19890.0,19889.0,4.03479191]
[1673651024668,0.10104686,19890.0,19889.0,3.51129371]
[1673651025392,0.10104686,19890.0,19889.0,3.5517784]
[1673651025645,0.18430925,19890.0,19889.0,0.83415265]
[1673651025898,0.18430925,19890.0,19889.0,0.333]
[1673651026382,0.68707425,19890.0,19889.0,0.333]
[1673651027125,1.09883925,19890.0,19889.0,0.325]
[1673651027369,1.23383925,19890.0,19889.0,0.326]
[1673651027622,1.22222317,19890.0,19889.0,0.325]
[1673651027851,1.23483925,19890.0,19889.0,0.326]
[1673651028110,1.09883925,19890.0,19889.0,0.325]
[1673651028345,1.23483925,19890.0,19889.0,0.326]
[1673651028592,1.23483925,19890.0,19889.0,0.325]
[1673651028837,0.36530925,19890.0,19889.0,1.45966426]
[1673651029074,0.28204686,19890.0,19889.0,1.99243149]
[1673651029336,0.28204686,19890.0,19889.0,2.64531912]
[1673651029565,0.28204686,19890.0,19889.0,3.27179371]
[1673651029821,0.28204686,19890.0,19889.0,3.68427668]
[1673651030296,0.28204686,19890.0,19889.0,4.54717076]
[1673651030544,0.01004686,19890.0,19889.0,3.88327668]
[1673651030829,0.14604686,19890.0,19889.0,4.54701864]
[1673651031078,0.12171356,19890.0,19889.0,3.08636507]
[1673651031326,0.12171356,19890.0,19889.0,3.88627668]
[1673651032532,0.12171356,19890.0,19889.0,3.08636507]
[1673651032784,0.12171356,19890.0,19889.0,4.19639739]
[1673651033270,0.09895025,19894.0,19889.0,3.88327668]
[1673651033522,0.09895025,19894.0,19891.0,0.2]
[1673651033767,0.09895025,19894.0,19893.0,0.59991161]
[1673651033768,0.01013486,19894.0,19893.0,0.59991161]
[1673651033994,0.09911877,19894.0,19892.0,1.01426667]
[1673651034229,0.09911877,19894.0,19892.0,0.50115265]
[1673651034732,0.23511877,19894.0,19893.0,0.005]
[1673651035009,0.08750261,19893.0,19890.0,0.59991161]
[1673651035262,0.09911877,19894.0,19892.0,0.005]
[1673651035263,0.94879886,19894.0,19892.0,0.005]
[1673651035525,1.08828514,19893.0,19892.0,0.005]
[1673651035994,1.08828514,19893.0,19890.0,1.23867846]
[1673651036251,1.08828514,19893.0,19890.0,1.39504631]
[1673651036503,0.502689,19893.0,19891.0,0.53221926]
[1673651036750,0.126,19893.0,19892.0,0.60491161]
[1673651037007,0.01013486,19894.0,19892.0,1.60949497]
[1673651037256,0.01013486,19894.0,19893.0,2.15982943]
[1673651037502,0.01013486,19894.0,19893.0,1.83585943]
[1673651038509,0.01013486,19894.0,19893.0,3.10761406]
[1673651038752,0.01013486,19894.0,19893.0,3.10595055]
[1673651038987,0.01013486,19894.0,19893.0,2.57633451]
[1673651039227,0.01013486,19894.0,19893.0,3.20629221]
[1673651039481,0.14613486,19894.0,19893.0,3.20629221]
[1673651039723,0.01013486,19894.0,19893.0,3.20629221]
[1673651039960,0.13313486,19894.0,19893.0,3.21229221]
[1673651040242,0.13313486,19894.0,19893.0,3.362822]
[1673651040473,0.13313486,19894.0,19893.0,2.7328643]
[1673651040750,0.01013486,19894.0,19893.0,2.7268643]
[1673651040985,0.02213486,19894.0,19893.0,2.7848643]
[1673651041248,0.01013486,19894.0,19893.0,2.5766233]
[1673651041722,0.01013486,19894.0,19893.0,3.32177591]
[1673651042467,0.01013486,19894.0,19893.0,4.14520609]
[1673651042699,0.02213486,19894.0,19893.0,4.20420609]
[1673651042954,0.02213486,19894.0,19893.0,4.05396509]
[1673651043466,0.02213486,19894.0,19893.0,3.86421582]
[1673651043468,0.01013486,19894.0,19893.0,3.321551]
[1673651043747,0.02213486,19894.0,19893.0,3.23053491]
[1673651043997,0.02213486,19894.0,19893.0,3.380551]
[1673651044244,0.02213486,19894.0,19893.0,4.16178203]
[1673651044520,0.02213486,19894.0,19893.0,5.11526057]
[1673651044812,0.02213486,19894.0,19893.0,4.66446801]
[1673651045076,0.09213486,19894.0,19893.0,5.82050604]
[1673651045317,0.05631074,19894.0,19893.0,5.81989217]
[1673651045563,0.05631074,19894.0,19893.0,6.07115525]
[1673651045866,0.05631074,19894.0,19893.0,5.69531183]
[1673651046144,0.05631074,19894.0,19893.0,6.07020785]
[1673651047677,0.05631074,19894.0,19893.0,5.71088479]
[1673651047919,0.05631074,19894.0,19893.0,4.85560051]
[1673651048421,0.05631074,19894.0,19893.0,4.85552056]
[1673651049153,0.05631074,19894.0,19893.0,4.63067042]
[1673651049404,0.05631074,19894.0,19893.0,5.63589245]
[1673651049645,0.05631074,19894.0,19893.0,6.01065556]
[1673651049895,0.05631074,19894.0,19893.0,4.03875011]
[1673651050140,0.05631074,19894.0,19893.0,2.12540481]
[1673651050386,0.05631074,19894.0,19893.0,1.80143481]
[1673651050878,0.00351846,19895.0,19894.0,0.25154084]
[1673651051134,0.00351846,19895.0,19894.0,2.2904242]
[1673651051381,0.00351846,19895.0,19894.0,2.89819793]
[1673651051623,0.00351846,19895.0,19894.0,3.66292319]
[1673651052129,0.00351846,19895.0,19894.0,3.51297711]
[1673651052887,0.01451846,19895.0,19894.0,3.88276526]
[1673651053146,0.01451846,19895.0,19894.0,3.73291423]
[1673651053393,0.01451846,19895.0,19894.0,3.15150814]
[1673651053645,0.00351846,19895.0,19894.0,2.93157102]
[1673651053891,0.00351846,19895.0,19894.0,1.98812856]
[1673651053892,0.01451846,19895.0,19894.0,1.98812856]
[1673651054151,0.00351846,19895.0,19894.0,1.19164956]
[1673651054403,0.01451846,19895.0,19894.0,1.26164956]
[1673651054649,0.01451846,19895.0,19894.0,1.19164956]
[1673651054901,0.02551846,19895.0,19894.0,1.26164956]
[1673651055906,0.00351846,19895.0,19894.0,1.26164956]
[1673651056186,0.00351846,19895.0,19894.0,1.19164956]
[1673651056418,0.00351846,19895.0,19894.0,1.19864956]
[1673651056419,0.11651846,19895.0,19894.0,1.19864956]
[1673651057649,0.31651846,19895.0,19894.0,1.19864956]
[1673651058401,1.46429334,19895.0,19894.0,0.05854084]
[1673651058906,1.40332209,19895.0,19894.0,0.05854084]
[1673651059152,1.32179446,19895.0,19894.0,0.05854084]
[1673651059402,1.29648942,19895.0,19894.0,0.05154084]
[1673651059650,1.39398381,19895.0,19894.0,0.05854084]
[1673651059900,0.2,19894.0,19890.0,0.00019]
[1673651060147,1.508082,19893.0,19891.0,0.63592659]
[1673651060646,1.508082,19893.0,19890.0,0.59510161]
[1673651060647,0.2,19892.0,19890.0,0.59510161]
[1673651060894,1.005478,19891.0,19890.0,0.5554306]
[1673651061144,1.10013219,19891.0,19890.0,0.00019]
[1673651061659,1.30013219,19891.0,19889.0,0.325]
[1673651061914,0.2,19890.0,19889.0,0.325]
[1673651062216,1.20553,19890.0,19889.0,0.325]
[1673651062921,1.70555797,19890.0,19889.0,0.325]
[1673651063168,1.54155797,19890.0,19889.0,0.325]
[1673651063412,1.84155797,19890.0,19889.0,0.325]
[1673651063707,1.63920861,19890.0,19889.0,0.325]
[1673651064458,1.50320861,19890.0,19889.0,0.325]
[1673651064716,1.84155797,19890.0,19889.0,0.325]
[1673651065009,0.2,19889.0,19888.0,0.0091011]
[1673651065251,1.6897358,19889.0,19888.0,0.0091011]
[1673651065764,1.28983137,19889.0,19888.0,0.0091011]
[1673651067301,1.22583137,19889.0,19888.0,0.0091011]
[1673651067567,0.50279,19889.0,19888.0,0.87766812]
[1673651067801,0.502758,19891.0,19888.0,1.95852431]
[1673651068054,0.502758,19891.0,19889.0,0.50115265]
[1673651068300,0.502758,19891.0,19890.0,0.59491161]
[1673651068629,0.502733,19892.0,19890.0,2.13493726]
[1673651068811,0.502711,19893.0,19891.0,0.52397]
[1673651069057,0.5910792,19894.0,19892.0,0.59491161]
[1673651069299,0.5910792,19894.0,19892.0,0.50944958]
[1673651069545,0.502664,19894.0,19892.0,0.50944958]
[1673651069810,0.00351846,19895.0,19893.0,1.08606426]
[1673651070047,0.00351846,19895.0,19894.0,0.10860643]
[1673651070293,0.00351846,19895.0,19894.0,0.61805601]
[1673651070540,0.00351846,19895.0,19894.0,0.82036834]
[1673651070794,0.00351846,19895.0,19894.0,0.62036834]
[1673651071041,0.00351846,19895.0,19894.0,0.58722394]
[1673651071290,0.00351846,19895.0,19893.0,1.0860654]
[1673651071291,0.58681736,19895.0,19893.0,1.0860654]
[1673651071797,0.72181736,19895.0,19893.0,1.0860654]
[1673651072043,0.58681736,19895.0,19893.0,0.58491275]
[1673651072294,1.08945536,19895.0,19893.0,0.58491275]
[1673651072546,1.26970503,19895.0,19893.0,0.58491275]
[1673651072795,1.22445536,19895.0,19893.0,0.58491275]
[1673651073317,1.14379446,19895.0,19893.0,1.16982436]
[1673651073808,1.00879446,19895.0,19893.0,1.16982436]
[1673651074054,0.64115646,19895.0,19894.0,0.47700074]
[1673651074304,0.13851846,19895.0,19894.0,1.79407962]
[1673651074559,0.13851846,19895.0,19894.0,1.79379421]
[1673651074849,0.13851846,19895.0,19894.0,2.11776421]
[1673651075086,0.13851846,19895.0,19894.0,2.01157297]
[1673651075578,0.00351846,19895.0,19894.0,2.01157297]
[1673651075845,0.13851846,19895.0,19894.0,2.01157297]
[1673651076604,0.13851846,19895.0,19894.0,2.39648458]
[1673651076838,0.13851846,19895.0,19894.0,1.887035]
[1673651077360,0.13851846,19895.0,19894.0,1.563065]
[1673651077603,0.13851846,19895.0,19894.0,1.77011292]
[1673651077861,0.13851846,19895.0,19894.0,2.09408292]
[1673651078123,0.13851846,19895.0,19894.0,2.8035325]
[1673651078381,0.13851846,19895.0,19894.0,2.59628104]
[1673651078898,0.13851846,19895.0,19894.0,2.39628104]
[1673651079118,0.13851846,19895.0,19894.0,1.81136943]
[1673651079371,0.13851846,19895.0,19894.0,2.39628104]
[1673651079617,0.13851846,19895.0,19894.0,1.81136943]
[1673651080158,0.13851846,19895.0,19894.0,1.88683146]
[1673651080683,0.13851846,19895.0,19894.0,1.56286146]
[1673651080907,0.13851846,19895.0,19894.0,1.56297706]
[1673651081149,0.13851846,19895.0,19894.0,1.06170881]
[1673651081650,0.13851846,19895.0,19894.0,0.58491161]
[1673651081895,0.13851846,19895.0,19894.0,1.1039147]
[1673651082172,0.64115646,19895.0,19894.0,1.1039147]
[1673651082434,0.13851846,19895.0,19894.0,1.1039147]
[1673651083165,0.13851846,19895.0,19894.0,1.60506735]
[1673651084152,0.64115646,19895.0,19894.0,1.0]
[1673651084420,1.44379446,19895.0,19894.0,1.0]
[1673651084677,1.42701623,19895.0,19894.0,1.0]
[1673651085204,1.71143246,19895.0,19894.0,1.0]
[1673651085446,2.14743246,19895.0,19894.0,1.0]
[1673651086263,1.94568257,19895.0,19894.0,1.0]
[1673651086496,1.60968257,19895.0,19894.0,1.0]
[1673651086752,1.74568257,19895.0,19894.0,1.58491161]
[1673651087260,1.60968257,19895.0,19894.0,1.58491161]
[1673651087753,1.64743246,19895.0,19894.0,1.0]
[1673651087999,2.16348184,19895.0,19894.0,1.0]
[1673651088533,2.36348184,19895.0,19894.0,1.0]
[1673651088793,1.92142484,19895.0,19894.0,1.0]
[1673651089032,1.78542484,19895.0,19894.0,1.0]
[1673651090270,1.92142484,19895.0,19894.0,1.0]
[1673651090762,1.72142484,19895.0,19894.0,1.0]
[1673651091997,1.58542484,19895.0,19894.0,1.0]
[1673651092483,1.51143246,19895.0,19894.0,1.0]
[1673651092737,1.94743246,19895.0,19894.0,1.0]
[1673651092990,2.04770012,19895.0,19894.0,1.0]
[1673651093239,2.18270012,19895.0,19894.0,1.0]
[1673651093492,2.72386016,19895.0,19894.0,1.0]
[1673651093737,2.85986016,19895.0,19894.0,1.0]
[1673651093982,2.72386016,19895.0,19894.0,1.0]
[1673651094473,2.82295971,19895.0,19894.0,1.0]
[1673651095261,2.72386016,19895.0,19894.0,1.0]
[1673651095755,2.85986016,19895.0,19894.0,1.0]
[1673651096017,2.72386016,19895.0,19894.0,1.0]
[1673651096266,3.08376082,19895.0,19894.0,1.0]
[1673651096513,0.14303448,19893.0,19890.0,0.58491161]
[1673651096762,0.14303448,19893.0,19888.0,0.0091011]
[1673651096763,2.010856,19892.0,19888.0,0.0091011]
[1673651097009,0.5,19891.0,19888.0,0.59401271]
[1673651097251,1.508295,19890.0,19888.0,0.59401271]
[1673651097513,0.2,19889.0,19888.0,0.59401271]
[1673651097766,1.20558,19889.0,19888.0,0.59401271]
[1673651098245,1.00558,19889.0,19888.0,0.59401271]
[1673651098483,1.00558,19889.0,19888.0,1.24461474]
[1673651099198,1.14058,19889.0,19888.0,1.24461474]
[1673651099441,1.555191,19889.0,19888.0,0.59401271]
[1673651099943,1.65591877,19889.0,19888.0,0.59401271]
[1673651101195,1.30630777,19889.0,19888.0,0.59401271]
[1673651101444,1.44230777,19889.0,19888.0,0.59401271]
[1673651101697,1.44126677,19889.0,19888.0,0.59401271]
[1673651102197,1.140539,19889.0,19888.0,0.59401271]
[1673651102450,1.140539,19889.0,19888.0,1.29545077]
[1673651102451,0.637749,19889.0,19888.0,1.29545077]
[1673651102695,0.502765,19890.0,19888.0,1.54959055]
[1673651102937,0.502765,19890.0,19889.0,0.223967]
[1673651103188,0.502765,19890.0,19889.0,0.73849836]
[1673651103715,0.502765,19890.0,19889.0,0.223967]
[1673651103953,0.50274,19891.0,19889.0,0.42037889]
[1673651104189,1.00548,19891.0,19888.0,2.2480628]
[1673651104451,1.00548,19891.0,19890.0,0.58491161]
[1673651104691,0.22640707,19890.0,19888.0,0.59401271]
[1673651104934,1.50837,19889.0,19888.0,0.59401271]
[1673651106202,1.70837,19889.0,19888.0,0.0091011]
[1673651106769,1.79947014,19889.0,19888.0,0.59401271]
[1673651107048,1.93547014,19889.0,19888.0,0.59401271]
[1673651107291,2.23547014,19889.0,19888.0,0.59401271]
[1673651107568,1.93547014,19889.0,19888.0,0.59401271]
[1673651107836,1.79947014,19889.0,19888.0,0.59401271]
[1673651108082,1.93547014,19889.0,19888.0,0.59401271]
[1673651108329,2.09926596,19889.0,19888.0,0.59401271]
[1673651108597,1.79926596,19889.0,19888.0,0.59401271]
[1673651108851,2.09926596,19889.0,19888.0,0.59401271]
[1673651109096,2.23526596,19889.0,19888.0,0.59401271]
[1673651109347,1.93526596,19889.0,19888.0,0.59401271]
[1673651109597,1.93526596,19889.0,19888.0,0.8546095]
[1673651109598,1.64416582,19889.0,19888.0,0.8546095]
[1673651109873,1.50816582,19889.0,19888.0,1.15377298]
[1673651110122,1.64416582,19889.0,19888.0,1.15377298]
[1673651110853,1.50816582,19889.0,19888.0,1.0934616]
[1673651111104,1.64316582,19889.0,19888.0,1.0934616]
[1673651113351,1.84316582,19889.0,19888.0,0.0091011]
[1673651113606,2.21874849,19889.0,19888.0,0.0091011]
[1673651113857,2.49090214,19889.0,19888.0,0.0091011]
[1673651114377,2.05590214,19889.0,19888.0,0.0091011]
[1673651114626,2.19190214,19889.0,19888.0,0.0091011]
[1673651114876,2.49190214,19889.0,19888.0,0.0091011]
[1673651115120,2.24211973,19889.0,19888.0,0.0091011]
[1673651115370,2.24211973,19889.0,19888.0,0.3391011]
[1673651115854,2.24211973,19889.0,19888.0,0.92401271]
[1673651116123,1.74211973,19889.0,19888.0,0.92401271]
[1673651116359,1.64416582,19889.0,19888.0,1.49327971]
[1673651116837,1.50816582,19889.0,19888.0,1.49327971]
[1673651117086,1.64416582,19889.0,19888.0,1.64351779]
[1673651117316,1.50816582,19889.0,19888.0,1.64351779]
[1673651117549,1.50816582,19889.0,19888.0,1.49327971]
[1673651117794,1.64316582,19889.0,19888.0,1.49327971]
[1673651120054,1.64316582,19889.0,19888.0,0.9083681]
[1673651120298,1.64316582,19889.0,19888.0,1.49327971]
[1673651122566,1.64316582,19889.0,19888.0,0.92401271]
[1673651122807,2.16738711,19889.0,19888.0,0.3391011]
[1673651123040,2.45051135,19889.0,19888.0,0.3391011]
[1673651123294,2.36738711,19889.0,19888.0,0.3391011]
[1673651123549,2.23238711,19889.0,19888.0,0.3391011]
[1673651123780,2.14416582,19889.0,19888.0,0.3391011]
[1673651124014,1.94197979,19889.0,19888.0,0.3391011]
[1673651124298,1.94197979,19889.0,19888.0,0.92401271]
[1673651124554,1.74197979,19889.0,19888.0,0.92401271]
[1673651125804,1.60597979,19889.0,19888.0,0.92401271]
[1673651126040,0.63858582,19889.0,19888.0,1.65738721]
[1673651126287,0.63858582,19889.0,19888.0,1.90688192]
[1673651126288,0.136,19889.0,19888.0,1.90688192]
[1673651126555,0.271,19889.0,19888.0,2.55826755]
[1673651127324,0.502765,19890.0,19888.0,2.40063663]
[1673651127576,0.502765,19890.0,19889.0,0.223967]
[1673651127822,0.502765,19890.0,19889.0,0.58491161]
[1673651128589,0.502765,19890.0,19888.0,1.49175502]
[1673651128831,0.502765,19890.0,19889.0,0.58491161]
[1673651129103,0.502765,19890.0,19888.0,1.49175502]
[1673651129365,0.502765,19890.0,19889.0,0.58491161]
[1673651129845,0.502765,19890.0,19888.0,1.65683434]
[1673651130338,0.597765,19890.0,19889.0,0.58491161]
[1673651130583,0.502765,19890.0,19889.0,0.58491161]
[1673651130829,0.597765,19890.0,19889.0,0.58491161]
[1673651131086,1.09183178,19890.0,19889.0,0.58491161]
[1673651131332,1.22583178,19890.0,19889.0,0.58491161]
[1673651131581,1.42583178,19890.0,19889.0,0.58482793]
[1673651132102,1.22583178,19890.0,19889.0,0.58482793]
[1673651132381,1.09183178,19890.0,19889.0,0.58482793]
[1673651132622,1.22683178,19890.0,19889.0,0.58482793]
[1673651132891,1.09183178,19890.0,19889.0,0.58482793]
[1673651133147,1.37753473,19890.0,19889.0,0.58482793]
[1673651133360,1.67753473,19890.0,19889.0,0.58482793]
[1673651133854,1.37753473,19890.0,19889.0,0.58672775]
[1673651134108,1.22783178,19890.0,19889.0,0.58482793]
[1673651134851,1.42783178,19890.0,19888.0,0.3391011]
[1673651135096,1.22783178,19890.0,19889.0,0.58482793]
[1673651135359,1.09183178,19890.0,19889.0,0.58482793]
[1673651135619,1.22783178,19890.0,19889.0,0.58482793]
[1673651135868,1.09183178,19890.0,19888.0,0.3391011]
[1673651136124,1.37753473,19890.0,19888.0,0.3391011]
[1673651136369,1.37753473,19890.0,19889.0,0.57982793]
[1673651136370,1.22783178,19890.0,19889.0,0.57982793]
[1673651136869,1.09183178,19890.0,19889.0,0.57982793]
[1673651137133,0.09388667,19889.0,19888.0,0.3391011]
[1673651137375,1.09946667,19889.0,19888.0,0.91892903]
[1673651139100,1.23546667,19889.0,19888.0,0.91921738]
[1673651139339,1.09946667,19889.0,19888.0,0.91892903]
[1673651139593,1.66613443,19889.0,19888.0,0.3391011]
[1673651139841,1.74098591,19889.0,19888.0,0.3391011]
[1673651140086,2.46479219,19889.0,19888.0,0.3391011]
[1673651140326,2.9135849,19889.0,19888.0,0.3391011]
[1673651140574,2.15202063,19889.0,19888.0,0.3391011]
[1673651140823,2.81162149,19889.0,19888.0,0.3391011]
[1673651141071,2.51221558,19889.0,19888.0,0.3391011]
[1673651141323,2.51221558,19889.0,19883.0,0.62892067]
[1673651141324,0.02844728,19885.0,19883.0,0.00947501]
[1673651141577,1.508748,19884.0,19883.0,0.00947501]
[1673651141825,1.005832,19884.0,19883.0,1.0774477]
[1673651142085,1.005832,19884.0,19883.0,0.58930294]
[1673651142328,1.005832,19884.0,19883.0,1.14592839]
[1673651143138,1.141832,19884.0,19883.0,1.14592839]
[1673651143641,1.276832,19884.0,19883.0,1.26143134]
[1673651143885,1.276832,19884.0,19883.0,1.17739551]
[1673651144140,1.276832,19884.0,19883.0,0.48930294]
[1673651144385,0.271,19884.0,19883.0,1.190741]
[1673651144633,0.271,19884.0,19883.0,3.02034751]
[1673651144890,0.271,19884.0,19883.0,3.4993633]
[1673651145156,0.13727613,19887.0,19884.0,0.2]
[1673651145402,0.13727613,19887.0,19886.0,0.48930294]
[1673651145638,0.13727613,19887.0,19886.0,1.31437059]
[1673651146131,0.13727613,19887.0,19886.0,0.81321794]
[1673651146618,0.13727613,19887.0,19886.0,0.92821794]
[1673651147133,0.13727613,19887.0,19886.0,0.60430294]
[1673651147384,0.64011713,19887.0,19886.0,0.60430294]
[1673651147642,0.64011713,19887.0,19886.0,0.48930294]
[1673651148370,1.14295813,19887.0,19886.0,0.48930294]
[1673651149355,1.23960818,19887.0,19886.0,0.48930294]
[1673651150073,1.48715208,19887.0,19886.0,0.48930294]
[1673651150333,1.78715208,19887.0,19886.0,0.48930294]
[1673651150543,1.98715208,19887.0,19886.0,0.48930294]
[1673651150828,1.98715208,19887.0,19882.0,0.9534911]
[1673651151077,1.98715208,19887.0,19882.0,0.49859404]
[1673651151078,0.14994923,19885.0,19882.0,0.49859404]
[1673651151324,1.508748,19884.0,19882.0,0.54940094]
[1673651151600,1.508748,19884.0,19882.0,0.49859404]
[1673651151845,0.2,19883.0,19882.0,0.49859404]
[1673651152093,1.205884,19883.0,19882.0,0.50659404]
[1673651152347,1.205884,19883.0,19882.0,0.49859404]
[1673651152603,1.005884,19883.0,19882.0,0.50659404]
[1673651152859,1.005884,19883.0,19882.0,1.09761964]
[1673651153591,1.000884,19883.0,19882.0,1.08961964]
[1673651153835,1.000884,19883.0,19882.0,1.09561964]
[1673651154327,1.000884,19883.0,19882.0,1.03881274]
[1673651155609,1.200884,19883.0,19882.0,0.49840404]
[1673651155852,1.27822333,19883.0,19882.0,0.49840404]
[1673651156098,1.27822333,19883.0,19882.0,0.0091011]
[1673651156099,2.10436171,19883.0,19882.0,0.0091011]
[1673651156344,2.28455377,19883.0,19882.0,0.0091011]
[1673651156896,2.443003,19883.0,19882.0,0.0091011]
[1673651157150,2.66792685,19883.0,19882.0,0.0091011]
[1673651157403,2.012326,19883.0,19881.0,0.40787905]
[1673651157653,0.27976284,19882.0,19881.0,0.40787905]
[1673651157924,1.28569684,19882.0,19881.0,0.40787905]
[1673651158411,1.28569684,19882.0,19880.0,0.40787905]
[1673651158655,1.28561198,19882.0,19881.0,0.009]
[1673651159398,1.58561198,19882.0,19881.0,0.009]
[1673651159926,0.2,19881.0,19880.0,0.3988929]
[1673651160175,1.505984,19881.0,19880.0,0.3988929]
[1673651160425,1.58265261,19881.0,19879.0,0.3988929]
[1673651160669,1.59150279,19881.0,19879.0,0.3988929]
[1673651160918,1.28265261,19881.0,19879.0,0.3988929]
[1673651161163,1.28265261,19881.0,19878.0,0.40844376]
[1673651161404,1.28265261,19881.0,19880.0,0.008]
[1673651161906,1.58265261,19881.0,19880.0,0.008]
[1673651162166,1.89150279,19881.0,19880.0,0.008]
[1673651162409,1.89150279,19881.0,19878.0,0.40844376]
[1673651162907,1.38265261,19881.0,19880.0,0.3988929]
[1673651163401,1.005984,19881.0,19880.0,0.59917831]
[1673651163649,1.005984,19881.0,19880.0,0.99592505]
[1673651164399,1.005984,19881.0,19880.0,0.3988929]
[1673651166415,0.60153212,19883.0,19880.0,1.52625612]
[1673651166675,0.502938,19884.0,19881.0,1.02512265]
[1673651166927,0.60314026,19884.0,19882.0,1.12422655]
[1673651167173,0.60314026,19884.0,19882.0,0.3988929]
[1673651167424,0.08021605,19883.0,19882.0,0.3988929]
[1673651167668,1.205884,19883.0,19882.0,0.3988929]
[1673651168419,0.09326607,19882.0,19879.0,0.5999583]
[1673651168666,0.09326607,19882.0,19881.0,0.3988929]
[1673651168933,0.09326607,19882.0,19880.0,0.3988929]
[1673651168934,1.50891,19882.0,19880.0,0.3988929]
[1673651169181,1.53823661,19882.0,19880.0,0.3988929]
[1673651169434,0.3,19881.0,19878.0,0.40844376]
[1673651169693,0.2,19881.0,19880.0,0.3988929]
[1673651169936,1.708976,19881.0,19880.0,0.3988929]
[1673651170179,1.93310386,19881.0,19878.0,0.40844376]
[1673651170428,2.23310386,19881.0,19878.0,0.41544376]
[1673651170681,2.23310386,19881.0,19879.0,0.3988929]
[1673651170931,0.17196196,19880.0,19879.0,0.3988929]
[1673651171183,1.17799796,19880.0,19879.0,0.3988929]
[1673651172430,0.99066555,19880.0,19879.0,0.3988929]
[1673651173412,1.19066555,19880.0,19879.0,0.3988929]
[1673651173922,0.97799796,19880.0,19879.0,1.21172174]
[1673651174177,0.97799796,19880.0,19879.0,1.01143633]
[1673651174430,0.47497996,19880.0,19879.0,1.11353505]
[1673651175178,0.502989,19882.0,19880.0,0.2]
[1673651175436,0.50296,19883.0,19881.0,1.12427655]
[1673651175680,0.50296,19883.0,19882.0,0.523917]
[1673651175931,0.50296,19883.0,19881.0,1.25278716]
[1673651176211,1.01701831,19883.0,19881.0,0.3988929]
[1673651176457,0.01083427,19882.0,19881.0,0.3988929]
[1673651176712,1.01676827,19882.0,19881.0,0.3988929]
[1673651178507,0.01676827,19882.0,19881.0,0.3988929]
[1673651178755,0.51973527,19882.0,19880.0,0.56052531]
[1673651179000,0.51973527,19882.0,19881.0,0.00220394]
[1673651179248,0.51973527,19882.0,19880.0,0.56052531]
[1673651179485,0.51973527,19882.0,19881.0,0.3988929]
[1673651179737,0.51973527,19882.0,19880.0,0.56052531]
[1673651180491,0.51973527,19882.0,19881.0,0.3888929]
[1673651182982,0.9220048,19882.0,19881.0,0.3888929]
[1673651183484,1.01973527,19882.0,19881.0,0.3888929]
[1673651183732,0.71973527,19882.0,19881.0,0.3888929]
[1673651184999,1.22196457,19882.0,19879.0,0.3638929]
[1673651185259,0.2,19880.0,19879.0,0.3638929]
[1673651185790,2.26435207,19880.0,19879.0,0.3638929]
[1673651186044,2.56435207,19880.0,19878.0,0.37344376]
[1673651186304,0.3,19879.0,19878.0,0.37344376]
[1673651186549,1.306086,19879.0,19878.0,0.37344376]
[1673651186797,1.05836607,19879.0,19878.0,0.37344376]
[1673651188285,1.05836607,19879.0,19878.0,0.00955086]
[1673651188536,1.006086,19879.0,19878.0,0.37344376]
[1673651188783,1.006086,19879.0,19878.0,0.46673464]
[1673651189035,1.006086,19879.0,19878.0,0.94464577]
[1673651189772,1.006086,19879.0,19878.0,0.9448502]
[1673651190020,1.006086,19879.0,19878.0,0.9968502]
[1673651190274,1.006086,19879.0,19878.0,0.99664577]
[1673651190770,1.006086,19879.0,19878.0,0.9968502]
[1673651191016,1.006086,19879.0,19878.0,0.99664577]
[1673651191257,1.006086,19879.0,19878.0,0.42544376]
[1673651191507,1.006086,19879.0,19878.0,0.37344376]
[1673651191747,1.006086,19879.0,19878.0,0.00955086]
[1673651192312,1.006086,19879.0,19878.0,0.37344376]
[1673651192563,2.009129,19879.0,19878.0,0.37344376]
[1673651194286,2.15907823,19879.0,19878.0,0.37344376]
[1673651194519,2.49777008,19879.0,19878.0,0.37344376]
[1673651194758,2.009129,19879.0,19878.0,0.37344376]
[1673651195242,2.15907823,19879.0,19878.0,0.37344376]
[1673651196279,2.38400208,19879.0,19878.0,0.37344376]
[1673651196522,2.23405285,19879.0,19878.0,0.37344376]
[1673651196758,2.38365769,19879.0,19878.0,0.37344376]
[1673651197004,2.38365769,19879.0,19878.0,0.00955086]
[1673651197005,2.74484193,19879.0,19878.0,0.00955086]
[1673651197497,0.2,19878.0,19876.0,0.36908008]
[1673651197752,2.012376,19877.0,19876.0,0.36908008]
[1673651198774,2.012376,19877.0,19876.0,0.49208008]
[1673651199525,2.312376,19877.0,19876.0,0.49208008]
[1673651199766,2.512376,19877.0,19876.0,0.49208008]
[1673651201271,2.76654098,19877.0,19876.0,0.12818718]
[1673651201518,2.71426091,19877.0,19876.0,0.12818718]
[1673651201779,2.93918476,19877.0,19874.0,0.01120323]
[1673651202031,0.57770951,19876.0,19874.0,0.01120323]